bitfinex/quotes_SOLUSD_20250809
["timestamp","ask_amount","ask_price","bid_price","bid_amount"]
[1754715523522,13.96414008,179.03,178.98,18.32900282]
[1754715523735,32.3031429,179.03,178.98,18.32900282]
[1754715523926,31.5831429,179.03,178.98,18.32900282]
[1754715524246,0.72,179.02,178.98,17.61900282]
[1754715524436,0.72,179.01,178.98,17.61900282]
[1754715524635,0.72,179.0,178.97,17.61900282]
[1754715525444,18.33900282,179.02,178.97,18.32900282]
[1754715525633,5.58628009,179.01,178.97,18.32900282]
[1754715525832,6.30628009,179.01,178.97,18.32900282]
[1754715526146,5.58628009,179.01,178.98,0.71]
[1754715526648,6.30628009,179.01,178.96,0.71]
[1754715526851,6.30628009,179.01,178.97,0.71]
[1754715527160,0.72,179.0,178.96,17.61900282]
[1754715527536,5.58690429,178.99,178.96,18.32900282]
[1754715527854,17.61900282,178.97,178.85,0.06]
[1754715528023,0.72,178.98,178.85,0.06]
[1754715528024,17.61900282,178.95,178.91,0.71]
[1754715528343,0.72,178.94,178.89,18.32900282]
[1754715528647,0.72,178.94,178.9,0.71]
[1754715529143,17.61900282,178.95,178.9,17.61900282]
[1754715529352,18.33900282,178.95,178.91,0.71]
[1754715529728,5.5884654,178.94,178.91,0.71]
[1754715530238,5.5884654,178.94,178.86,66.08]
[1754715530440,6.3084654,178.94,178.9,17.61900282]
[1754715530932,6.3084654,178.94,178.9,18.32900282]
[1754715532544,6.3084654,178.94,178.87,0.71]
[1754715532545,17.61900282,178.92,178.87,0.71]
[1754715532737,18.33900282,178.91,178.87,0.71]
[1754715533047,0.72,178.91,178.87,18.32900282]
[1754715534667,5.58971492,178.9,178.87,18.32900282]
[1754715535352,5.58971492,178.9,178.87,0.71]
[1754715535538,5.58971492,178.9,178.86,17.61900282]
[1754715535725,0.72,178.89,178.85,58.40900282]
[1754715535922,0.72,178.89,178.85,40.79]
[1754715536141,0.72,178.89,178.85,58.40900282]
[1754715536544,0.72,178.89,178.85,40.79]
[1754715536742,5.59033989,178.88,178.85,58.40900282]
[1754715536959,5.59033989,178.88,178.86,18.32900282]
[1754715537542,5.59033989,178.88,178.86,0.71]
[1754715538048,5.59002739,178.89,178.86,0.71]
[1754715538252,6.31002739,178.89,178.86,0.71]
[1754715539152,6.31002739,178.89,178.86,18.32900282]
[1754715540155,6.31002739,178.89,178.86,17.61900282]
[1754715540454,0.72,178.88,178.85,40.08]
[1754715540635,0.72,178.87,178.85,0.06]
[1754715542063,18.33900282,178.86,178.85,0.06]
[1754715542246,18.33900282,178.86,178.83,0.06]
[1754715542559,17.61900282,178.84,178.83,0.06]
[1754715542730,17.61900282,178.82,178.81,0.06]
[1754715542926,18.33900282,178.82,178.81,0.06]
[1754715543738,23.93121845,178.82,178.81,0.06]
[1754715545546,6.31221563,178.82,178.81,0.06]
[1754715545746,23.93121845,178.82,178.81,0.06]
[1754715547655,23.93121845,178.82,178.74,0.06]
[1754715547656,37.91175753,178.82,178.74,0.06]
[1754715547855,17.61900282,178.77,178.74,0.06]
[1754715548557,17.61900282,178.79,178.74,17.67900282]
[1754715548751,17.61900282,178.79,178.75,0.72]
[1754715548944,17.61900282,178.79,178.76,0.72]
[1754715549279,0.72,178.79,178.76,0.72]
[1754715549440,18.33900282,178.79,178.76,0.72]
[1754715549643,17.61900282,178.78,178.74,0.78]
[1754715549950,5.59377971,178.77,178.74,18.39900282]
[1754715550576,5.59377971,178.77,178.75,0.72]
[1754715556870,5.59377971,178.77,178.75,18.33900282]
[1754715557565,5.59377971,178.77,178.75,0.72]
[1754715557867,5.59377971,178.77,178.75,18.33900282]
[1754715559688,5.59377971,178.77,178.75,0.72]
[1754715559861,5.59377971,178.77,178.75,18.33900282]
[1754715560372,6.31377971,178.77,178.75,17.61900282]
[1754715560867,5.59346683,178.78,178.75,17.61900282]
[1754715561078,6.31346683,178.78,178.75,17.61900282]
[1754715561980,5.59221563,178.82,178.77,17.61900282]
[1754715562174,6.31221563,178.82,178.78,18.33900282]
[1754715562487,0.72,178.81,178.78,18.33900282]
[1754715562659,0.72,178.81,178.78,0.72]
[1754715563059,5.59284116,178.8,178.78,0.72]
[1754715563259,5.59284116,178.8,178.76,17.61900282]
[1754715563260,0.72,178.79,178.76,17.61900282]
[1754715563687,0.72,178.79,178.76,18.33900282]
[1754715564391,5.59346683,178.78,178.76,18.33900282]
[1754715565667,5.59315397,178.79,178.76,18.33900282]
[1754715565860,6.31315397,178.79,178.76,18.33900282]
[1754715566261,6.31315397,178.79,178.76,0.72]
[1754715566592,6.31315397,178.79,178.76,18.33900282]
[1754715566756,5.59315397,178.79,178.76,0.72]
[1754715566957,5.59315397,178.79,178.77,17.61900282]
[1754715568195,0.72,178.8,178.76,0.72]
[1754715568482,0.72,178.8,178.77,17.61900282]
[1754715568886,0.72,178.8,178.77,18.33900282]
[1754715569185,5.59252838,178.81,178.77,18.33900282]
[1754715569388,6.31252838,178.81,178.77,18.33900282]
[1754715569902,6.31252838,178.81,178.77,0.72]
[1754715570082,0.72,178.8,178.77,18.33900282]
[1754715570261,5.59315397,178.79,178.77,18.33900282]
[1754715570657,5.59315397,178.79,178.77,0.72]
[1754715570880,5.59315397,178.79,178.76,18.33900282]
[1754715572084,5.59315397,178.79,178.76,0.72]
[1754715572297,5.59315397,178.79,178.76,18.33900282]
[1754715572595,5.59315397,178.79,178.77,4.10896843]
[1754715574272,5.59315397,178.79,178.78,4.10896843]
[1754715574471,5.59315397,178.79,178.77,4.10896843]
[1754715574693,5.59315397,178.79,178.78,4.10896843]
[1754715575682,5.59315397,178.79,178.78,4.11449844]
[1754715576060,5.59284116,178.8,178.78,4.11449844]
[1754715576402,0.67,178.79,178.76,0.72]
[1754715576579,5.59284116,178.8,178.77,4.11636093]
[1754715576889,6.26284116,178.8,178.78,4.11636093]
[1754715577188,6.26284116,178.8,178.77,0.67]
[1754715577363,6.26284116,178.8,178.78,4.11668665]
[1754715577670,6.26284116,178.8,178.79,4.11668665]
[1754715586070,5.59284116,178.8,178.79,4.11668665]
[1754715586270,5.59284116,178.8,178.79,4.78668665]
[1754715586879,5.59284116,178.8,178.79,4.11668665]
[1754715587094,5.59252838,178.81,178.79,4.11668665]
[1754715587296,5.59252838,178.81,178.78,0.67]
[1754715587297,5.59252838,178.81,178.8,4.11668665]
[1754715587480,6.26252838,178.81,178.8,4.11668665]
[1754715588190,5.59252838,178.81,178.8,4.11668665]
[1754715588384,27.98169946,178.88,178.8,4.11668665]
[1754715588385,0.03,178.85,178.8,22.40568947]
[1754715588695,0.03,178.85,178.83,17.61900282]
[1754715588995,5.6212776,178.85,178.84,4.11668665]
[1754715589492,5.6212776,178.85,178.84,22.40568947]
[1754715590287,0.03,178.85,178.84,22.40568947]
[1754715592572,0.03,178.85,178.84,4.78668665]
[1754715592998,0.03,178.85,178.84,4.11668665]
[1754715594995,5.6212776,178.85,178.84,4.11668665]
[1754715600596,5.6212776,178.85,178.84,4.13128416]
[1754715601102,5.6212776,178.85,178.84,4.80128416]
[1754715601710,0.03,178.85,178.84,4.13128416]
[1754715603407,0.03,178.85,178.83,18.28900282]
[1754715604220,0.03,178.85,178.84,4.1332783]
[1754715604416,0.03,178.85,178.83,18.28900282]
[1754715605296,0.03,178.85,178.84,4.13308955]
[1754715605697,0.03,178.85,178.84,22.42209237]
[1754715606010,0.73,178.85,178.81,18.28900282]
[1754715606219,0.73,178.85,178.82,4.13314143]
[1754715606518,0.73,178.85,178.83,4.13314143]
[1754715606818,0.73,178.85,178.82,0.67]
[1754715606990,0.03,178.85,178.83,4.80358027]
[1754715607194,0.03,178.85,178.84,4.13358027]
[1754715608017,0.03,178.85,178.83,0.67]
[1754715608316,0.03,178.85,178.82,18.28900282]
[1754715608514,0.03,178.85,178.83,4.13370236]
[1754715608819,18.31900282,178.84,178.77,17.67900282]
[1754715609117,17.61900282,178.82,178.78,4.13555219]
[1754715609319,18.31900282,178.81,178.79,4.13555219]
[1754715609497,18.31900282,178.81,178.77,0.06]
[1754715609697,0.7,178.8,178.78,4.13673817]
[1754715609918,18.31900282,178.8,178.79,4.13673817]
[1754715610222,23.91184398,178.8,178.79,4.13673817]
[1754715610400,6.29284116,178.8,178.77,0.06]
[1754715610603,0.7,178.79,178.78,4.1367129]
[1754715610797,18.31900282,178.79,178.77,0.06]
[1754715610997,17.61900282,178.78,178.77,0.06]
[1754715611197,18.31900282,178.78,178.77,4.19803814]
[1754715611505,18.31900282,178.78,178.75,1e-08]
[1754715611714,17.61900282,178.76,178.75,1e-08]
[1754715611916,57.19900282,178.76,178.75,1e-08]
[1754715612209,63.49309545,178.76,178.75,1e-08]
[1754715614410,45.87409263,178.76,178.75,1e-08]
[1754715614604,63.49309545,178.76,178.75,1e-08]
[1754715614798,62.79309545,178.76,178.75,1e-08]
[1754715615110,63.49309545,178.76,178.75,1e-08]
[1754715616824,63.49309545,178.76,178.73,0.06]
[1754715616825,26.0,178.74,178.73,0.06]
[1754715617019,83.19900282,178.74,178.73,0.06]
[1754715617257,83.19900282,178.74,178.72,0.06]
[1754715617258,99.00521839,178.74,178.72,0.06]
[1754715617400,18.31900282,178.73,178.72,0.06]
[1754715618507,18.31900282,178.73,178.71,0.06]
[1754715618712,62.81434749,178.72,178.71,1e-08]
[1754715619031,63.51434749,178.72,178.7,1e-08]
[1754715619230,44.31900282,178.71,178.7,1e-08]
[1754715619635,26.0,178.69,178.68,0.06]
[1754715619806,83.21900282,178.69,178.68,0.06]
[1754715620011,83.21900282,178.69,178.63,0.67]
[1754715620012,83.91900282,178.69,178.63,0.67]
[1754715620232,17.61900282,178.67,178.63,0.67]
[1754715620408,57.21900282,178.67,178.63,0.67]
[1754715620612,18.31900282,178.66,178.61,0.67]
[1754715620823,17.61900282,178.64,178.6,0.87]
[1754715621227,0.7,178.64,178.6,0.87]
[1754715621513,0.7,178.64,178.61,0.67]
[1754715621514,18.31900282,178.64,178.61,0.67]
[1754715621729,5.5981638,178.63,178.61,0.67]
[1754715621908,5.5981638,178.63,178.6,0.2]
[1754715622109,5.5981638,178.63,178.6,0.87]
[1754715622652,5.5981638,178.63,178.61,0.67]
[1754715623138,39.64,178.67,178.62,18.28900282]
[1754715623322,17.61900282,178.7,178.66,17.61900282]
[1754715623635,5.59565776,178.71,178.69,17.61900282]
[1754715624012,5.59565776,178.71,178.69,18.28900282]
[1754715624939,5.59565776,178.71,178.69,0.67]
[1754715625621,5.59565776,178.71,178.67,18.28900282]
[1754715626014,6.29565776,178.71,178.67,18.28900282]
[1754715626814,6.29565776,178.71,178.68,0.67]
[1754715627010,5.59565776,178.71,178.68,0.67]
[1754715627238,6.29565776,178.71,178.68,0.67]
[1754715627754,5.59565776,178.71,178.69,0.67]
[1754715628943,5.59565776,178.71,178.67,17.61900282]
[1754715628944,5.59565776,178.71,178.67,18.28900282]
[1754715629245,0.7,178.7,178.66,17.61900282]
[1754715629764,0.7,178.7,178.66,18.28900282]
[1754715630043,5.59628406,178.69,178.66,0.67]
[1754715630257,5.59628406,178.69,178.6,0.2]
[1754715630258,26.0,178.66,178.6,0.2]
[1754715630430,15.10621557,178.58,178.56,0.06]
[1754715630749,26.0,178.55,178.54,0.06]
[1754715630956,98.86521839,178.55,178.54,0.06]
[1754715631113,99.56521839,178.55,178.54,0.06]
[1754715631313,84.45900282,178.55,178.54,0.06]
[1754715631514,26.0,178.55,178.54,0.06]
[1754715631713,43.61900282,178.55,178.54,0.06]
[1754715631935,49.9196749,178.55,178.54,0.06]
[1754715632116,65.02589047,178.55,178.54,0.06]
[1754715633044,105.18589047,178.55,178.54,0.06]
[1754715634364,105.18589047,178.55,178.54,1e-08]
[1754715635330,87.56688765,178.55,178.54,1e-08]
[1754715635641,31.60067208,178.55,178.54,1e-08]
[1754715636744,5.60067208,178.55,178.54,1e-08]
[1754715636945,5.60067208,178.55,178.54,0.66000001]
[1754715637259,40.14,178.58,178.54,0.66000001]
[1754715637458,40.14,178.58,178.54,18.27900283]
[1754715637666,5.59973121,178.58,178.54,18.27900283]
[1754715638649,23.21842048,178.59,178.54,18.27900283]
[1754715639363,18.27900282,178.58,178.54,1e-08]
[1754715639566,17.61900282,178.57,178.54,1e-08]
[1754715639736,18.27900282,178.57,178.54,1e-08]
[1754715640539,5.60035842,178.56,178.54,1e-08]
[1754715640744,6.26035842,178.56,178.54,1e-08]
[1754715641746,23.87936124,178.56,178.54,1e-08]
[1754715641959,0.66,178.55,178.54,1e-08]
[1754715642951,6.26067208,178.55,178.54,1e-08]
[1754715645061,23.8796749,178.55,178.54,1e-08]
[1754715645548,6.26067208,178.55,178.54,1e-08]
[1754715645753,5.60067208,178.55,178.54,1e-08]
[1754715646166,26.0,178.52,178.48,0.06]
[1754715646375,17.61900282,178.5,178.48,0.06]
[1754715646679,17.61900282,178.54,178.49,0.66]
[1754715646972,5.6012995,178.53,178.49,18.27900282]
[1754715647285,20.26454825,178.53,178.49,17.61900282]
[1754715647439,37.88355107,178.53,178.48,17.67900282]
[1754715647644,37.88355107,178.53,178.48,18.33900282]
[1754715648171,37.22355107,178.53,178.48,0.72]
[1754715648357,0.66,178.52,178.48,0.06]
[1754715648559,18.27900282,178.51,178.48,0.06]
[1754715648763,17.61900282,178.5,178.48,0.06]
[1754715649078,5.60255476,178.49,178.48,0.06]
[1754715649249,20.26894167,178.49,178.44,0.06]
[1754715649571,40.2,178.48,178.44,18.33900282]
[1754715650066,5.60255476,178.49,178.47,17.61900282]
[1754715650444,5.60255476,178.49,178.45,0.66]
[1754715650648,5.60255476,178.49,178.46,0.66]
[1754715651149,5.60255476,178.49,178.44,0.06]
[1754715651150,0.66,178.49,178.45,17.61900282]
[1754715651345,0.66,178.49,178.46,17.61900282]
[1754715652045,5.60224089,178.5,178.46,17.61900282]
[1754715652246,5.60224089,178.5,178.46,18.27900282]
[1754715653065,5.60224089,178.5,178.47,17.61900282]
[1754715655062,5.60192706,178.51,178.47,17.61900282]
[1754715655575,5.60192706,178.51,178.47,18.27900282]
[1754715655883,5.60192706,178.51,178.48,17.61900282]
[1754715656089,5.60192706,178.51,178.47,18.27900282]
[1754715656481,5.60067208,178.55,178.5,17.61900282]
[1754715656685,5.60067208,178.55,178.53,17.61900282]
[1754715656884,5.60067208,178.55,178.51,0.66]
[1754715657198,5.60067208,178.55,178.53,17.61900282]
[1754715657782,5.60067208,178.55,178.51,0.66]
[1754715657966,5.60067208,178.55,178.53,17.61900282]
[1754715658768,5.6000448,178.57,178.53,17.61900282]
[1754715658967,5.6000448,178.57,178.54,17.61900282]
[1754715659201,6.2600448,178.57,178.54,17.61900282]
[1754715659986,5.6000448,178.57,178.54,17.61900282]
[1754715660293,5.6000448,178.57,178.55,17.61900282]
[1754715660662,40.25,178.58,178.56,17.61900282]
[1754715660663,5.62980447,178.58,178.56,17.61900282]
[1754715660860,0.03,178.58,178.56,17.61900282]
[1754715661079,0.03,178.58,178.57,17.61900282]
[1754715661280,0.03,178.58,178.57,18.27900282]
[1754715661864,0.03,178.58,178.54,0.66]
[1754715662079,0.03,178.58,178.55,17.61900282]
[1754715662300,0.03,178.58,178.56,17.61900282]
[1754715663286,0.03,178.58,178.57,17.61900282]
[1754715664279,0.03,178.58,178.53,0.69]
[1754715664486,0.03,178.58,178.56,17.61900282]
[1754715664995,0.03,178.58,178.57,17.61900282]
[1754715665465,0.03,178.58,178.57,18.30900282]
[1754715667311,0.03,178.58,178.57,23.90904762]
[1754715675415,0.03,178.6,178.57,39.85959081]
[1754715675596,0.03,178.6,178.59,59.00954153]
[1754715675804,0.03,178.6,178.59,59.56948329]
[1754715676116,0.03,178.6,178.59,60.25948329]
[1754715676489,0.03,178.6,178.59,65.85890095]
[1754715676691,0.03,178.6,178.59,105.93890095]
[1754715677129,0.03,178.6,178.59,108.18073895]
[1754715678625,0.03,178.64,178.63,41.10621557]
[1754715678806,0.03,178.64,178.63,99.60935791]
[1754715679005,0.69,178.73,178.63,100.29935791]
[1754715679207,0.69,178.73,178.72,17.61900282]
[1754715679417,0.03,178.74,178.72,57.71900282]
[1754715679725,0.03,178.74,178.73,44.30900282]
[1754715680101,0.03,178.74,178.73,33.41521839]
[1754715680503,0.03,178.74,178.73,39.29457314]
[1754715680704,0.69,178.84,178.79,26.0]
[1754715680929,0.03,178.85,178.83,17.61900282]
[1754715681228,0.03,178.85,178.84,57.73900282]
[1754715683525,0.72,178.85,178.84,40.12]
[1754715684430,0.72,178.85,178.84,57.73900282]
[1754715684724,0.72,178.85,178.84,40.12]
[1754715684910,5.59159024,178.84,178.83,17.61900282]
[1754715685110,6.28159024,178.84,178.83,17.61900282]
[1754715685310,0.69,178.84,178.82,40.1]
[1754715685510,5.62131272,178.85,178.83,17.61900282]
[1754715685827,5.62131272,178.85,178.84,17.61900282]
[1754715686602,6.31131272,178.85,178.84,17.61900282]
[1754715688627,6.31131272,178.85,178.82,40.1]
[1754715688628,6.31131272,178.85,178.83,17.61900282]
[1754715688802,0.69,178.84,178.83,17.61900282]
[1754715689009,0.69,178.84,178.82,40.1]
[1754715689328,5.62131272,178.85,178.81,17.61900282]
[1754715689502,5.62131272,178.85,178.8,40.04]
[1754715689700,5.62131272,178.85,178.81,17.61900282]
[1754715689902,5.62131272,178.85,178.82,17.61900282]
[1754715690430,5.62131272,178.85,178.83,17.61900282]
[1754715691228,0.69,178.84,178.83,17.61900282]
[1754715692130,6.28159024,178.84,178.82,17.61900282]
[1754715692308,0.69,178.83,178.82,17.61900282]
[1754715692832,0.03,178.85,178.82,18.30900282]
[1754715693015,0.03,178.85,178.84,17.61900282]
[1754715693221,6.3112776,178.85,178.84,17.61900282]
[1754715693425,0.72,178.85,178.84,17.61900282]
[1754715693620,0.03,178.85,178.84,17.61900282]
[1754715694338,0.03,178.85,178.84,18.32900282]
[1754715695934,0.03,178.85,178.84,17.61900282]
[1754715697732,0.03,178.85,178.84,18.32900282]
[1754715700937,0.03,178.85,178.83,40.06]
[1754715701124,0.03,178.85,178.84,40.1]
[1754715701637,0.03,178.85,178.84,57.71900282]
[1754715701840,0.03,178.85,178.84,84.42900282]
[1754715702523,0.03,178.85,178.84,100.37870055]
[1754715702857,0.03,178.87,178.86,41.39053871]
[1754715703023,0.03,178.87,178.86,73.68863803]
[1754715703224,0.03,178.87,178.86,79.43050653]
[1754715705220,0.03,178.87,178.86,81.66895753]
[1754715706344,0.03,178.9,178.89,41.39053871]
[1754715706544,0.77,179.03,178.94,15.10621557]
[1754715706846,6.35565603,179.03,179.02,17.61900282]
[1754715707032,0.77,179.03,179.02,17.61900282]
[1754715707249,0.1,179.03,179.02,17.61900282]
[1754715708028,0.1,179.03,179.02,18.32900282]
[1754715708636,0.1,179.03,179.02,23.91497086]
[1754715708833,0.1,179.03,179.02,18.32900282]
[1754715709331,0.1,179.03,179.02,44.32900282]
[1754715709855,0.1,179.03,179.02,65.02118643]
[1754715710229,0.1,179.03,179.02,59.43521839]
[1754715711039,0.1,179.03,179.02,65.02118643]
[1754715712855,0.1,179.03,179.02,39.02118643]
[1754715713429,0.1,179.03,179.02,39.30550957]
[1754715713644,0.1,179.03,179.02,39.86410637]
[1754715714861,0.1,179.03,179.02,45.44740937]
[1754715716062,0.1,179.03,179.02,39.02118643]
[1754715716265,0.1,179.03,179.02,79.04118643]
[1754715717956,0.1,179.03,179.02,79.88410637]
[1754715719265,0.1,179.03,179.02,82.12042937]
[1754715720357,0.1,179.03,179.02,34.96154139]
[1754715720549,0.1,179.03,179.02,73.39521839]
[1754715720754,0.1,179.03,179.02,81.21775943]
[1754715722975,0.03,179.09,179.08,26.0]
[1754715723160,0.67,179.17,179.12,15.10621557]
[1754715723469,0.67,179.17,179.16,17.61900282]
[1754715723634,0.67,179.17,179.16,57.67900282]
[1754715724262,0.67,179.17,179.16,17.61900282]
[1754715724648,0.67,179.17,179.15,17.61900282]
[1754715724849,0.67,179.17,179.16,40.04]
[1754715724850,6.25129682,179.17,179.16,40.04]
[1754715725363,6.30129682,179.17,179.16,40.04]
[1754715725883,0.72,179.17,179.16,40.04]
[1754715726164,0.72,179.17,179.16,57.65900282]
[1754715726679,0.72,179.17,178.99,27.16595247]
[1754715726680,23.92029433,179.17,179.15,40.02]
[1754715726900,7.78849487,179.27,179.14,26.0]
[1754715727169,16.770551,179.21,179.2,15.10621557]
[1754715727378,5.5775648,179.29,179.2,73.86521839]
[1754715727542,0.72,179.29,179.2,73.86521839]
[1754715727747,4.51531511,179.3,179.28,17.61900282]
[1754715727946,4.51531511,179.3,179.24,26.0]
[1754715728181,4.51531511,179.3,179.28,17.61900282]
[1754715728352,4.51531511,179.3,179.29,58.11900282]
[1754715728550,5.23531511,179.3,179.29,58.11900282]
[1754715729148,5.23531511,179.3,179.29,40.5]
[1754715729350,5.23531511,179.3,179.29,58.11900282]
[1754715729556,4.51531511,179.3,179.29,58.11900282]
[1754715730173,4.51531511,179.3,179.23,6.13709715]
[1754715730358,4.51531511,179.3,179.29,17.61900282]
[1754715730554,4.51531511,179.3,179.29,58.11900282]
[1754715731674,4.51531511,179.3,179.29,80.30485303]
[1754715731969,16.750886,179.43,179.36,26.0]
[1754715732158,16.750886,179.43,179.42,17.61900282]
[1754715732354,0.72,179.45,179.42,58.31900282]
[1754715732670,0.72,179.44,179.42,40.7]
[1754715732873,0.72,179.47,179.43,17.61900282]
[1754715733173,43.61900282,179.52,179.44,40.74]
[1754715733467,0.72,179.46,179.45,40.74]
[1754715733672,0.72,179.46,179.45,40.76]
[1754715733875,0.72,179.46,179.38,15.10621557]
[1754715734178,0.72,179.46,179.39,40.76]
[1754715734495,42.95552611,179.54,179.35,0.66]
[1754715734496,6.29134102,179.49,179.45,17.61900282]
[1754715734653,0.72,179.49,179.48,17.61900282]
[1754715734852,0.72,179.49,179.48,58.47900282]
[1754715735058,0.72,179.49,179.48,40.86]
[1754715735588,18.33900282,179.49,179.38,26.0]
[1754715735769,18.33900282,179.48,179.43,17.61900282]
[1754715736071,18.33900282,179.48,179.43,58.47900282]
[1754715736072,0.72,179.47,179.43,58.47900282]
[1754715736281,0.72,179.47,179.43,40.86]
[1754715736491,5.57227237,179.46,179.43,58.47900282]
[1754715736797,5.57227237,179.46,179.45,17.61900282]
[1754715737357,13.9575766,179.5,179.45,17.61900282]
[1754715737358,0.03,179.5,179.45,17.61900282]
[1754715737573,0.03,179.5,179.49,59.00954153]
[1754715737783,0.03,179.5,179.49,59.28235249]
[1754715738084,0.03,179.5,179.49,59.13900282]
[1754715739280,0.03,179.5,179.49,41.52]
[1754715739454,0.03,179.5,179.49,59.13900282]
[1754715740085,0.03,179.5,179.46,42.725205]
[1754715740288,0.03,179.5,179.41,40.18]
[1754715740289,0.72,179.49,179.41,40.18]
[1754715740584,0.72,179.49,179.46,17.61900282]
[1754715740763,6.2913952,179.49,179.45,41.5]
[1754715740962,0.72,179.48,179.45,41.5]
[1754715741158,0.72,179.47,179.41,40.18]
[1754715741362,0.72,179.47,179.36,0.55753791]
[1754715741575,18.33900282,179.47,179.42,17.61900282]
[1754715741802,19.49974775,179.49,179.33,0.55763118]
[1754715741803,17.61900282,179.45,179.33,0.55763118]
[1754715741968,17.61900282,179.41,179.3,0.55772448]
[1754715742298,0.72,179.4,179.36,17.61900282]
[1754715742591,19.49974775,179.49,179.37,41.54]
[1754715742592,0.72,179.43,179.37,41.54]
[1754715742752,0.72,179.4,179.36,41.56]
[1754715742957,0.72,179.4,179.28,40.16]
[1754715742958,17.61900282,179.39,179.34,17.61900282]
[1754715743194,0.72,179.38,179.34,41.56]
[1754715743370,18.33900282,179.38,179.34,41.56]
[1754715743568,0.72,179.37,179.34,41.56]
[1754715743772,0.72,179.36,179.34,41.56]
[1754715743962,0.72,179.35,179.3,41.54]
[1754715744295,0.72,179.34,179.3,59.15900282]
[1754715744467,0.72,179.33,179.31,17.61900282]
[1754715745187,0.72,179.33,179.32,17.61900282]
[1754715745483,0.72,179.36,179.32,17.61900282]
[1754715745666,0.72,179.36,179.34,17.61900282]
[1754715746270,0.72,179.35,179.32,17.61900282]
[1754715746598,0.72,179.34,179.33,17.61900282]
[1754715746762,5.57538939,179.36,179.33,17.61900282]
[1754715746961,0.72,179.35,179.33,17.61900282]
[1754715747169,0.72,179.34,179.33,17.61900282]
[1754715747374,0.72,179.34,179.32,17.61900282]
[1754715747588,0.72,179.34,179.33,17.61900282]
[1754715748089,0.72,179.38,179.33,59.09900282]
[1754715748263,0.72,179.41,179.37,17.61900282]
[1754715748593,0.72,179.41,179.39,17.61900282]
[1754715748794,6.29385284,179.41,179.39,17.61900282]
[1754715748992,5.57385284,179.41,179.38,17.61900282]
[1754715749164,0.72,179.4,179.38,17.61900282]
[1754715749366,5.57385284,179.41,179.38,17.61900282]
[1754715749666,0.72,179.39,179.37,41.48]
[1754715749899,18.33900282,179.39,179.34,59.07900282]
[1754715750188,0.72,179.38,179.35,17.61900282]
[1754715750365,17.61900282,179.37,179.34,41.46]
[1754715750561,6.29541367,179.36,179.34,41.46]
[1754715750765,27.86499763,179.44,179.34,41.46]
[1754715750766,0.72,179.43,179.35,32.72521839]
[1754715750976,0.72,179.43,179.42,17.61900282]
[1754715752281,0.72,179.43,179.41,17.61900282]
[1754715752465,5.57286435,179.45,179.42,17.61900282]
[1754715752666,5.57286435,179.45,179.43,17.61900282]
[1754715753077,0.72,179.44,179.43,17.61900282]
[1754715754794,6.29289344,179.44,179.42,17.61900282]
[1754715754975,0.66,179.43,179.42,17.61900282]
[1754715755892,6.23254491,179.46,179.42,17.61900282]
[1754715756075,0.66,179.45,179.43,17.61900282]
[1754715756281,0.66,179.45,179.38,17.67900282]
[1754715756282,17.61900282,179.44,179.38,17.67900282]
[1754715756477,17.61900282,179.4,179.38,0.06]
[1754715756797,17.61900282,179.39,179.36,0.06]
[1754715756993,17.61900282,179.38,179.36,0.06]
[1754715757289,18.27900282,179.38,179.36,0.06]
[1754715757488,17.61900282,179.38,179.36,0.06]
[1754715757682,6.23506829,179.37,179.36,0.06]
[1754715757886,23.85407111,179.37,179.36,0.06]
[1754715758085,6.23506829,179.37,179.36,0.06]
[1754715758486,23.85407111,179.37,179.36,0.06]
[1754715759379,6.23506829,179.37,179.36,0.06]
[1754715759582,5.57475749,179.38,179.36,0.06]
[1754715759985,5.57475749,179.38,179.37,17.61900282]
[1754715760181,5.57475749,179.38,179.36,0.06]